Cogmind - Beta 15 @@@ ROGUE MODE // 2025.07.17 @ 23:21:13 Player: Duduxx Result: Self-destructed Performance ------------- Evolutions (6) 3000 Regions Visited (19) 3800 Robots Destroyed (90) 450 Value Destroyed (2969) 2969 Prototype IDs (31) 620 Alien Tech Used (0) 0 Bonus (1324) 1324 TOTAL SCORE: 12163 Bonus ------- Follower Combat Kills 442 Entered DSFs 500 Aligned with FarCom 300 Acquired ECA 300 Friendly Fire -218 Cogmind --------- Core Integrity 749/1150 Matter 171/300 Energy 150/150 System Corruption 23% Temperature Cool (9) Movement Flying (125) Ox1 Location -4/Upper Caves Parts ------- > --- POWER (2) -------- Micro Fission Core > --- PROPULSION (6) --- Field Propulsion Drive > --- UTILITY (9) ------ Small Storage Unit Hacking Suite Hacking Suite Improved Hacking Suite Advanced Hacking Suite System Shield Improved System Shield > --- WEAPON (2) ------- Chainsword > --- INVENTORY (8) ---- Micro Fission Core Gyrokinetic Inverter Advanced Heat Sink Advanced Coolant Injector Phase Shifter Improved Focal Shield High-powered Shock Rifle Peak State ------------ > --- POWER ------------ Micro Fission Core Micro Fission Core > --- PROPULSION ------- Centrium Wheel Centrium Wheel Gyrokinetic Inverter Linear Gravjet Cooled Gravmag System Improved Linear Gravjet > --- UTILITY ---------- Advanced Melee Analysis Suite Hacking Suite Hacking Suite Hacking Suite Hacking Suite Advanced Hacking Suite System Shield System Shield Improved System Shield > --- WEAPON ----------- Centrium Greatsword > --- INVENTORY -------- Micro Fission Core Centrium Wheel Phase Shifter Improved Hacking Suite Chainsword [Rating: 104] Favorites ----------- Power Light Nuclear Core Engine Light Ion Engine Power Core Light Nuclear Core Reactor Light Antimatter Reactor Propulsion Cesium-ion Thruster Treads Light Treads Leg Titanium Leg Wheel Centrium Wheel Hover Unit Gyrokinetic Inverter Flight Unit Cesium-ion Thruster Utility Hacking Suite Device Advanced Weight Redist. System Storage Medium Storage Unit Processor Advanced Melee Analysis Suite Hackware Hacking Suite Protection Hardened Medium Armor Plating Weapon Longsword +1 Energy Gun EM Pulse Gun Ballistic Gun Assault Rifle Launcher Missile Launcher Slashing Weapon Longsword +1 Build | -11 -10 -10 -10 -9 -8 -7 -7 -7 -7 -6 -6 -6 -5 -5 -5 -4 -4 -4 -4 ------- Run | Yrd Mat Min Exi Min Mat Fac Was Fac DSF Fac Low Low Fac Upp Upp Fac Was Fac Upp Slots Evolved 12 | . . . . . 4 2 . . . 2 . . 2 . . 2 . . . Power 1 | . . . . . 1 . . . . . . . . . . . . . . Propulsion 4 | . . . . . 2 1 . . . . . . 1 . . . . . . Utility 7 | . . . . . 1 1 . . . 2 . . 1 . . 2 . . . Weapon . | . . . . . . . . . . . . . . . . . . . . Parts Attached 118 | 8 . 1 1 . 17 9 . . 8 14 6 5 13 4 . 7 1 23 1 Power 20 | 1 . . . . 3 2 . . . 4 1 1 1 1 . . . 5 1 Engine 6 | 1 . . . . 2 . . . . 3 . . . . . . . . . Core 12 | . . . . . 1 2 . . . 1 1 1 1 1 . . . 3 1 Reactor 2 | . . . . . . . . . . . . . . . . . . 2 . Propulsion 57 | 2 . . . . 8 4 . . 6 5 3 2 7 2 . 4 . 14 . Treads 5 | 2 . . . . 1 . . . . . . 1 . 1 . . . . . Leg 10 | . . . . . 4 . . . . . 1 1 4 . . . . . . Wheel 7 | . . . . . 2 . . . . . . . . 1 . 4 . . . Hover 8 | . . . . . . . . . . . . . 1 . . . . 7 . Flight 27 | . . . . . 1 4 . . 6 5 2 . 2 . . . . 7 . Utility 30 | 3 . . 1 . 3 3 . . 1 5 1 2 4 . . 3 . 4 . Device 10 | 2 . . . . 1 1 . . . 1 1 1 1 . . . . 2 . Storage 4 | 1 . . 1 . . 1 . . . . . . . . . . . 1 . Processor 1 | . . . . . . . . . . . . 1 . . . . . . . Hackware 12 | . . . . . 1 1 . . 1 3 . . 2 . . 3 . 1 . Protection 3 | . . . . . 1 . . . . 1 . . 1 . . . . . . Artifact . | . . . . . . . . . . . . . . . . . . . . Weapon 11 | 2 . 1 . . 3 . . . 1 . 1 . 1 1 . . 1 . . Energy Gun 3 | 2 . . . . 1 . . . . . . . . . . . . . . Energy Cannon . | . . . . . . . . . . . . . . . . . . . . Ballistic Gun 1 | . . 1 . . . . . . . . . . . . . . . . . Ballistic Cannon . | . . . . . . . . . . . . . . . . . . . . Launcher 1 | . . . . . . . . . . . 1 . . . . . . . . Special Weapon . | . . . . . . . . . . . . . . . . . . . . Impact Weapon . | . . . . . . . . . . . . . . . . . . . . Slashing Weapon 6 | . . . . . 2 . . . 1 . . . 1 1 . . 1 . . Piercing Weapon . | . . . . . . . . . . . . . . . . . . . . Special Melee Weapon . | . . . . . . . . . . . . . . . . . . . . Unidentified Prototypes 5 | . . . . . 1 1 . . . 1 . . . . . . 1 1 . Parts Lost 61 | . . 1 . . 7 1 . . 3 7 4 2 16 3 2 . 1 7 7 Power 12 | . . . . . 2 1 . . . 3 . . 3 . . . . 2 1 Propulsion 28 | . . . . . 2 . . . 2 2 2 2 8 2 1 . 1 2 4 Utility 14 | . . . . . 1 . . . 1 2 2 . 3 . 1 . . 2 2 Weapon 7 | . . 1 . . 2 . . . . . . . 2 1 . . . 1 . Highest Loss Streak 9 | . . 1 . . 5 1 . . 3 4 3 2 9 2 2 . 1 3 7 To Critical Strikes . | . . . . . . . . . . . . . . . . . . . . Average Backups 7 | 2 4 5 7 9 10 8 10 10 9 9 9 9 8 4 4 2 2 4 6 Power 1 | . 1 1 2 2 1 1 1 1 1 1 1 1 1 . . . . . . Propulsion . | 1 2 2 2 2 2 . . . . . . . . . . . . . 1 Utility 3 | . . . 1 2 3 4 7 7 6 5 6 5 4 4 4 2 2 2 4 Weapon 1 | . 1 1 2 3 3 2 2 2 2 2 2 2 1 . . . . . . Tool/Special . | . . . . . . . . . . . . . . . . . . . . Unused Backups 15 | . . . . . 3 1 . . 3 1 1 . 2 . . . . . 4 Power . | . . . . . . . . . . . . . . . . . . . . Propulsion 2 | . . . . . 1 . . . . . . . 1 . . . . . . Utility 8 | . . . . . 1 . . . 1 1 1 . 1 . . . . . 3 Weapon 5 | . . . . . 1 1 . . 2 . . . . . . . . . 1 Tool/Special . | . . . . . . . . . . . . . . . . . . . . Average Slot Usage (%) 89 | . 100 100 100 100 94 99 100 100 97 93 87 80 81 63 44 53 68 84 88 Engine 5 | . 14 14 14 14 10 . . . . . 5 6 3 . . . . . . Core 5 | . . . . . 6 14 15 15 15 6 . 2 2 2 . . . 7 10 Treads 6 | . 28 28 28 28 4 . . . . . . 2 3 2 . . . . . Leg 7 | . . . . . 28 7 . . . . 2 3 11 . . . . . . Hover 2 | . . . . . . . . . . . . . . . . . . 15 . Flight 11 | . . . . . . 29 38 38 36 31 27 17 7 5 1 . . 6 25 Device 5 | . 14 14 14 14 5 6 7 7 5 2 1 2 7 5 1 . . 1 5 Storage 6 | . 14 14 14 14 9 7 7 7 7 6 6 6 4 . . . . . 5 Processor 1 | . . . . . . . . . . . . 2 5 5 5 5 5 3 . Hackware 17 | . . . . . 4 14 15 15 15 25 24 20 18 29 29 40 42 41 36 Protection 2 | . . . . . 7 . . . . 3 3 . . . . . . . . Energy Gun 3 | . 28 15 14 14 3 . . . . . . . . . . . . . . Ballistic Gun 1 | . . 12 14 14 . . . . . . . . . . . . . . . Slashing Weapon 9 | . . . . . 14 15 15 15 15 13 12 13 10 8 5 5 4 4 5 Peak Build Rating 104 | 7 7 8 9 9 38 45 46 46 47 53 54 56 70 50 36 67 67 104 88 Average Rating 44 | 5 6 7 8 9 30 43 45 46 45 50 49 47 56 43 29 41 61 93 85 On Entrance 36 | . 7 7 8 9 9 38 45 46 46 47 47 42 56 36 36 28 67 66 86 Naked Turns . | . . . . . . . . . . . . . . . . . . . . Heaviest Build 45 | 13 13 13 28 28 45 35 25 25 26 27 24 29 29 19 3 3 5 23 18 Greatest Support 92 | 40 40 40 40 40 62 34 34 34 34 26 25 20 92 28 7 64 3 63 50 Greatest Overweight (x) 2 | . . . . . 2 1 . . 1 1 1 2 1 2 . . 1 2 1 Average Overweight (x) . | . . . . . . . . . . . . 1 . . . . . . . Largest Inventory Capacity 15 | 8 8 8 15 15 15 15 10 10 10 10 10 10 10 5 5 5 5 8 8 Average Capacity 9 | 7 8 8 8 15 15 8 10 10 10 10 10 10 9 5 5 5 5 5 8 Most Carried 15 | 5 5 7 9 10 15 15 10 10 10 10 10 10 10 4 5 5 4 6 7 Average Carried 8 | 2 4 5 7 9 10 8 10 10 9 9 9 9 8 4 4 2 2 4 6 Final Capacity 15 | 8 8 8 15 15 15 10 10 10 10 10 10 10 5 5 5 5 5 8 8 Final Carried 15 | 4 5 7 9 10 15 10 10 10 9 10 10 9 5 4 5 2 4 5 7 Class Distribution -------------------- 25% | Mutant 17% | Hacker-Mutant 16% | Hacker-Gladiator 12% | Scavenger-Mutant 11% | Hacker-Sprinter 8% | Wizard-Mutant 5% | Wizard-Gladiator Dominant Class ---------------- Mutant | -10/Materials Mutant | -10/Mines Mutant | -10/Exiles Mutant | -9/Mines Scavenger-Mutant | -8/Materials Hacker-Mutant | -7/Factory Hacker-Sprinter | -7/Waste Hacker-Sprinter | -7/Factory Hacker-Sprinter | -7/DSF Hacker-Sprinter | -6/Factory Hacker-Mutant | -6/Lower Caves Hacker-Mutant | -6/Lower Caves Hacker-Gladiator | -5/Factory Hacker-Gladiator | -5/Upper Caves Hacker-Mutant | -5/Upper Caves Wizard-Mutant | -4/Factory Wizard-Mutant | -4/Waste Wizard-Mutant | -4/Factory Wizard-Sprinter | -4/Upper Caves Resources | -11 -10 -10 -10 -9 -8 -7 -7 -7 -7 -6 -6 -6 -5 -5 -5 -4 -4 -4 -4 ----------- Run | Yrd Mat Min Exi Min Mat Fac Was Fac DSF Fac Low Low Fac Upp Upp Fac Was Fac Upp Matter Collected 1571 | 280 . 57 . . 200 90 20 . 80 172 132 77 120 104 . . . 239 . Remotely 98 | 98 . . . . . . . . . . . . . . . . . . . Salvage Created 4035 | 115 . 173 . . 1456 . 62 . 122 207 246 59 899 221 66 . . 351 58 Parts 218 | 4 . 17 . . 96 . 2 . 9 10 12 4 34 14 3 . . 10 3 Haulers Intercepted 3 | . . . . . 2 . . . . 1 . . . . . . . . . Recyclers Shooed 3 | . . . . . . . . . . . . . 3 . . . . . . Parts Field Recycled . | . . . . . . . . . . . . . . . . . . . . Retrieved Matter . | . . . . . . . . . . . . . . . . . . . . Parts Self-Destructed 19 | . . . . . . . . . . . 7 3 . 5 2 . . . 2 Prevented 5 | . . . . . . . . . . . . . . . . . . . 5 Kills | -11 -10 -10 -10 -9 -8 -7 -7 -7 -7 -6 -6 -6 -5 -5 -5 -4 -4 -4 -4 ------- Run | Yrd Mat Min Exi Min Mat Fac Was Fac DSF Fac Low Low Fac Upp Upp Fac Was Fac Upp Combat Hostiles Destroyed 65 | . . 5 . . 29 . . . 2 . 10 1 10 1 1 . . 5 1 Melee 52 | . . . . . 25 . . . 2 . 7 1 9 1 1 . . 5 1 Guns 8 | . . 5 . . 3 . . . . . . . . . . . . . . AOE 5 | . . . . . 1 . . . . . 3 . 1 . . . . . . Classes Destroyed 15 | 2 . 3 . . 7 . . . 1 . . . 1 1 . . . . . Worker 5 | . . . . . 2 . . . . 2 . . 1 . . . . . . Builder 4 | . . 1 . . 1 . . . . . . . 2 . . . . . . Tunneler 3 | 1 . 1 . . . . . . . 1 . . . . . . . . . Hauler 3 | . . . . . 2 . . . . 1 . . . . . . . . . Recycler 4 | 1 . . . . 1 . . . . . . . 2 . . . . . . Operator 3 | . . . . . 2 . . . . . . . . . . . . 1 . Watcher 3 | . . . . . 1 . . . . 1 . . . . . . . 1 . Swarmer 21 | . . 3 . . 9 . . . . . 9 . . . . . . . . Grunt 22 | . . 2 . . 12 . . . . . . . 8 . . . . . . Duelist 1 | . . . . . 1 . . . . . . . . . . . . . . Sentry 10 | . . . . . 6 . . . 1 . 1 . 1 . . . . 1 . Specialist 1 | . . . . . . . . . 1 . . . . . . . . . . Hunter 3 | . . . . . 1 . . . . . . 1 . . 1 . . . . Programmer 7 | . . . . . . . . . . . . . 1 1 . . . 4 1 Decomposer 3 | . . . . . . . . . . . . . . 3 . . . . . Samaritan 2 | . . . . . . . . . . . . . . 2 . . . . . Best Kill Streak 5 | 2 . 3 . . 5 . . . 2 3 4 1 4 1 1 . . 2 1 Combat Bots Only 5 | . . 3 . . 5 . . . 2 . 4 1 3 1 1 . . 2 1 Max Kills in Single Turn 2 | 1 . 1 . . 1 . . . 1 1 2 1 2 1 1 . . 1 1 Gunslinging . | . . . . . . . . . . . . . . . . . . . . Exploded 2 | . . . . . 1 . . . . . 2 . 1 . . . . . . Melee 1 | . . . . . 1 . . . 1 . 1 1 1 1 1 . . 1 1 Uniques/NPCs Destroyed . | . . . . . . . . . . . . . . . . . . . . Combat | -11 -10 -10 -10 -9 -8 -7 -7 -7 -7 -6 -6 -6 -5 -5 -5 -4 -4 -4 -4 -------- Run | Yrd Mat Min Exi Min Mat Fac Was Fac DSF Fac Low Low Fac Upp Upp Fac Was Fac Upp Hostile Shots Fired 579 | . 8 32 . . 114 50 . . 12 18 46 8 144 15 20 . 1 67 44 Missed 205 | . 3 9 . . 30 30 . . 3 10 14 2 59 4 3 . . 20 18 Hits 374 | . 5 23 . . 84 20 . . 9 8 32 6 85 11 17 . 1 47 26 Melee 1 | . . . . . . . . . . . . . . . . . 1 . . Projectile 373 | . 5 23 . . 84 20 . . 9 8 32 6 85 11 17 . . 47 26 AOE 3 | . . . . . . . . . . 1 . . 2 . . . . . . Critical Strikes 18 | . . 1 . . 2 . . . 1 . 1 . 7 . . . 1 3 2 Damage Taken 7114 | . 76 236 . . 1201 171 . . 232 722 481 89 1754 234 314 . 40 992 572 Core 1893 | . . 26 . . 170 26 . . 41 199 133 34 455 149 259 . 40 235 126 Absorbed by Shields . | . . . . . . . . . . . . . . . . . . . . Redirected to Shielding 208 | . . . . . . . . . . 6 102 . 100 . . . . . . Regen/Repaired (Parts) 225 | . . . . . . . 5 . 22 . . . . . . . . 198 . Core Remaining (%) 69 | 100 . . . 89 69 . . . 90 . . 56 . . 13 . . . . Volleys Fired 44 | 5 . 20 . . 13 . . . . . 3 . 3 . . . . . . Largest 2 | 2 . 2 . . 2 . . . . . 1 . 1 . . . . . . Hottest 105 | 80 . 80 . . 105 . . . . . 36 . 36 . . . . . . Shots Fired 73 | 10 . 40 . . 17 . . . . . 3 . 3 . . . . . . Gun 67 | 10 . 40 . . 17 . . . . . . . . . . . . . . Cannon . | . . . . . . . . . . . . . . . . . . . . Launcher 6 | . . . . . . . . . . . 3 . 3 . . . . . . Special . | . . . . . . . . . . . . . . . . . . . . Kinetic 14 | . . 14 . . . . . . . . . . . . . . . . . Thermal 13 | . . . . . 13 . . . . . . . . . . . . . . Explosive 6 | . . . . . . . . . . . 3 . 3 . . . . . . Electromagnetic 40 | 10 . 26 . . 4 . . . . . . . . . . . . . . Robot Hit Streak 9 | 6 . 8 . . 9 . . . . . 1 . 2 . . . . . . Robot Miss Streak 5 | 2 . 5 . . 2 . . . . . . . 1 . . . . . . Penetration Max . | . . . . . . . . . . . . . . . . . . . . Secondary Targets . | . . . . . . . . . . . . . . . . . . . . Shots Hit Robots 219 | 7 . 21 . . 71 . 2 . 4 14 13 4 41 9 7 . . 19 7 Core Hits 106 | 3 . 10 . . 36 . . . 2 4 10 2 24 3 2 . . 7 3 Critical Kills . | . . . . . . . . . . . . . . . . . . . . Critical Parts Destroyed . | . . . . . . . . . . . . . . . . . . . . Critical Strikes 27 | . . . . . 8 . . . . 3 . 1 10 1 1 . . 2 1 Burn 3 | . . . . . 3 . . . . . . . . . . . . . . Sever 24 | . . . . . 5 . . . . 3 . 1 10 1 1 . . 2 1 Melee Attacks 236 | . . . . . 63 2 2 . 5 23 18 5 50 13 9 . . 33 13 Impact . | . . . . . . . . . . . . . . . . . . . . Slashing 236 | . . . . . 63 2 2 . 5 23 18 5 50 13 9 . . 33 13 Piercing . | . . . . . . . . . . . . . . . . . . . . Sneak Attacks 30 | . . . . . 9 . . . 3 4 . . 4 6 . . . 4 . Combat Hostiles 4 | . . . . . 1 . . . 2 . . . . . . . . 1 . Follow-up Attacks 12 | . . . . . 4 . . . 1 . . 1 6 . . . . . . Damage Inflicted 10898 | 90 . 349 . . 3081 . 218 . 305 840 801 184 2440 544 272 . . 1529 245 Guns 547 | 90 . 269 . . 188 . . . . . . . . . . . . . . Cannons . | . . . . . . . . . . . . . . . . . . . . Explosions 797 | . . 80 . . 77 . . . . . 231 . 409 . . . . . . Melee 9551 | . . . . . 2816 . 218 . 305 840 570 184 2031 544 272 . . 1526 245 Ramming 3 | . . . . . . . . . . . . . . . . . . 3 . Kinetic 103 | . . 103 . . . . . . . . . . . . . . . . . Thermal 303 | . . 80 . . 223 . . . . . . . . . . . . . . Explosive 640 | . . . . . . . . . . . 231 . 409 . . . . . . Electromagnetic 298 | 90 . 166 . . 42 . . . . . . . . . . . . . . Impact . | . . . . . . . . . . . . . . . . . . . . Slashing 9551 | . . . . . 2816 . 218 . 305 840 570 184 2031 544 272 . . 1526 245 Piercing . | . . . . . . . . . . . . . . . . . . . . Highest Corruption 22 | . . . . . . . . . . 5 5 5 9 12 12 . 8 17 22 Average Corruption 7 | . . . . . . . . . . 5 5 5 5 10 12 . 8 9 17 Corruption Purged . | . . . . . . . . . . . . . . . . . . . . Corruption Blocked . | . . . . . . . . . . . . . . . . . . . . Effects 77 | . . . . . . . . . . 10 6 11 4 10 2 . 2 25 7 Message Errors 14 | . . . . . . . . . . 3 . 2 2 . . . . 6 1 Matter Fused 22 | . . . . . . . . . . 2 2 5 2 . . . . 8 3 Heat Flow Errors 8 | . . . . . . . . . . 1 2 2 . 1 . . . 2 . Energy Discharges 13 | . . . . . . . . . . 3 1 . . 3 1 . 1 4 . Parts Rejected 2 | . . . . . . . . . . . . . . . . . 1 . 1 Parts Fused 2 | . . . . . . . . . . . . . . 2 . . . . . Data Loss (minor) 11 | . . . . . . . . . . 1 1 2 . 3 1 . . 3 . Data Loss (major) 2 | . . . . . . . . . . . . . . . . . . 1 1 Alerts 1 | . . . . . . . . . . . . . . . . . . 1 . Misdirections 2 | . . . . . . . . . . . . . . 1 . . . . 1 Overload Shots . | . . . . . . . . . . . . . . . . . . . . Overflow Damage 1230 | . . . . . 255 . 155 . . 174 1 . 252 230 . . . 163 . Projectiles . | . . . . . . . . . . . . . . . . . . . . Explosions 61 | . . . . . 30 . . . . . . . 31 . . . . . . Melee 1169 | . . . . . 225 . 155 . . 174 1 . 221 230 . . . 163 . Knockbacks . | . . . . . . . . . . . . . . . . . . . . Impact . | . . . . . . . . . . . . . . . . . . . . Kinetic . | . . . . . . . . . . . . . . . . . . . . Secondary . | . . . . . . . . . . . . . . . . . . . . Self-Inflicted Damage 105 | . . 17 . . 43 . . . . . 44 . . . . . . 1 . Shots 3 | . . 1 . . 1 . . . . . 1 . . . . . . . . Rammed 1 | . . . . . . . . . . . . . . . . . . 1 . Targets Rammed 1 | . . . . . . . . . . . . . . . . . . 1 . Kicked . | . . . . . . . . . . . . . . . . . . . . Crushed . | . . . . . . . . . . . . . . . . . . . . Highest Temperature 288 | 36 . 168 . . 48 68 95 55 . 174 263 222 3 109 . . . 288 3 Average Temperature 81 | 19 . 109 . . 13 34 50 28 . 84 137 102 3 55 . . . 107 2 Received Heat Transfer 1350 | . 42 96 . . 522 51 . . 81 12 12 . 417 9 . . . 72 36 Siege Activations . | . . . . . . . . . . . . . . . . . . . . Martial Activations . | . . . . . . . . . . . . . . . . . . . . Shielding Activations . | . . . . . . . . . . . . . . . . . . . . Robots Disrupted . | . . . . . . . . . . . . . . . . . . . . Combat Hostiles . | . . . . . . . . . . . . . . . . . . . . Robots Corrupted . | . . . . . . . . . . . . . . . . . . . . Combat Hostiles . | . . . . . . . . . . . . . . . . . . . . Parts Fried . | . . . . . . . . . . . . . . . . . . . . Impact Corruptions . | . . . . . . . . . . . . . . . . . . . . Robots Melted . | . . . . . . . . . . . . . . . . . . . . Combat Hostiles . | . . . . . . . . . . . . . . . . . . . . Parts Melted 2 | . . . . . . . . . . . . . . . . . . 2 . Heat Transferred 692 | . . 50 . . 642 . . . . . . . . . . . . . . Parts Sabotaged . | . . . . . . . . . . . . . . . . . . . . Parts Stolen . | . . . . . . . . . . . . . . . . . . . . Parts Stripped . | . . . . . . . . . . . . . . . . . . . . Power Chain Reactions 3 | . . 2 . . 1 . . . . . . . . . . . . . . Alert | -11 -10 -10 -10 -9 -8 -7 -7 -7 -7 -6 -6 -6 -5 -5 -5 -4 -4 -4 -4 ------- Run | Yrd Mat Min Exi Min Mat Fac Was Fac DSF Fac Low Low Fac Upp Upp Fac Was Fac Upp Maximum Alert Level 1 | . . . . . 1 . . . 1 1 . . 1 . . . . . . Low Security (%) 91 | 100 100 100 . 100 77 100 100 100 29 99 . . 96 . . 100 100 100 . Level 1 8 | . . . . . 22 . . . 70 . . . 3 . . . . . . Level 2 . | . . . . . . . . . . . . . . . . . . . . Level 3 . | . . . . . . . . . . . . . . . . . . . . Level 4 . | . . . . . . . . . . . . . . . . . . . . Level 5 . | . . . . . . . . . . . . . . . . . . . . High Security . | . . . . . . . . . . . . . . . . . . . . Max Security . | . . . . . . . . . . . . . . . . . . . . Sterilizations 1 | . . . . . . . . . 1 . . . . . . . . . . Peak Influence 339 | 10 . 70 . . 339 139 32 4 334 207 . . 248 . . 81 17 58 . Initial 175 | . . . . . . 135 32 . . 175 . . . . . 81 17 . . Average 59 | . . 11 . . 112 112 12 . 209 70 . . 46 . . 68 9 6 . Influence Increases 3161 | 10 . 143 . . 824 149 . 4 484 309 220 30 587 180 30 . . 161 30 Destroy 0b10 Robot/C 1560 | . . 100 . . 580 . . . 220 80 200 20 200 20 20 . . 100 20 Destroy 0b10 Robot/NC 155 | 10 . 10 . . 45 . . . 20 35 . . 25 . . . . 10 . Destroy Leader 362 | . . 20 . . 156 . . . 30 34 20 10 30 10 10 . . 32 10 Allied During Kill 203 | . . . . . . . . . 146 57 . . . . . . . . . Successful Hack 49 | . . . . . 5 12 . 4 . 8 . . 20 . . . . . . Disable Machine 15 | . . . . . . . . . 15 . . . . . . . . . . Destroy Structure 187 | . . 13 . . 8 2 . . 53 35 . . 72 . . . . 4 . Partial Spotted 60 | . . . . . . 30 . . . 30 . . . . . . . . . Lose Combat Pursuer 570 | . . . . . 30 105 . . . 30 . . 240 150 . . . 15 . Influence Decreases 3161 | 10 . 143 . . 525 354 94 4 150 636 167 90 339 243 86 78 51 161 30 Entered New Map 612 | . . . . . . 164 62 . . 159 4 12 . 93 36 48 34 . . Time Decay 1794 | 10 . 133 . . 457 180 32 4 . 277 123 78 179 120 30 30 10 101 30 Lost Part 485 | . . 10 . . 68 10 . . 30 50 40 . 160 30 20 . 7 60 . Lost Ally 270 | . . . . . . . . . 120 150 . . . . . . . . . Squads Dispatched 29 | . 2 . . . 5 2 . . 2 5 . . 4 . . . . 9 . Investigation 10 | . . . . . 1 1 . . . 2 . . 2 . . . . 4 . Extermination 7 | . . . . . . 1 . . . 1 . . 1 . . . . 4 . Reinforcement 12 | . 2 . . . 4 . . . 2 2 . . 1 . . . . 1 . Assault . | . . . . . . . . . . . . . . . . . . . . Garrison . | . . . . . . . . . . . . . . . . . . . . Intercept . | . . . . . . . . . . . . . . . . . . . . Searches Triggered . | . . . . . . . . . . . . . . . . . . . . Construction Impeded 2 | . . . . . . . . . . 1 . . 1 . . . . . . Haulers Reinforced . | . . . . . . . . . . . . . . . . . . . . Active Scanning Responses . | . . . . . . . . . . . . . . . . . . . . Cargo Convoy Interrupts . | . . . . . . . . . . . . . . . . . . . . Stealth | -11 -10 -10 -10 -9 -8 -7 -7 -7 -7 -6 -6 -6 -5 -5 -5 -4 -4 -4 -4 --------- Run | Yrd Mat Min Exi Min Mat Fac Was Fac DSF Fac Low Low Fac Upp Upp Fac Was Fac Upp Distress Signals 6 | . . . . . 6 . . . . . . . . . . . . . . Communications Jammed . | . . . . . . . . . . . . . . . . . . . . Distress Signals . | . . . . . . . . . . . . . . . . . . . . Times Spotted 161 | . 3 5 . . 42 13 . . 7 8 10 1 28 11 1 . 6 14 12 Peak Tracking Total 10 | . 4 3 . . 7 6 . . 4 3 4 1 9 10 1 . 6 5 8 Tactical Retreats 17 | . . . . . 1 4 . . . 1 . . 7 3 . . . 1 . Traps | -11 -10 -10 -10 -9 -8 -7 -7 -7 -7 -6 -6 -6 -5 -5 -5 -4 -4 -4 -4 ------- Run | Yrd Mat Min Exi Min Mat Fac Was Fac DSF Fac Low Low Fac Upp Upp Fac Was Fac Upp Traps Triggered 8 | . 1 . . . 1 1 . . 1 . . . . . . 1 . 3 . Indirectly . | . . . . . . . . . . . . . . . . . . . . Trap Hack Attempts . | . . . . . . . . . . . . . . . . . . . . Triggered . | . . . . . . . . . . . . . . . . . . . . Disarmed . | . . . . . . . . . . . . . . . . . . . . Reprogrammed . | . . . . . . . . . . . . . . . . . . . . Reused . | . . . . . . . . . . . . . . . . . . . . Traps Extracted . | . . . . . . . . . . . . . . . . . . . . Installed . | . . . . . . . . . . . . . . . . . . . . Triggered . | . . . . . . . . . . . . . . . . . . . . Machines | -11 -10 -10 -10 -9 -8 -7 -7 -7 -7 -6 -6 -6 -5 -5 -5 -4 -4 -4 -4 ---------- Run | Yrd Mat Min Exi Min Mat Fac Was Fac DSF Fac Low Low Fac Upp Upp Fac Was Fac Upp Machines Disabled 1 | . . . . . . . . . 1 . . . . . . . . . . Max in Single Turn . | . . . . . . . . . . . . . . . . . . . . Garrison Access 3 | . . . . . 1 . . . . 1 . . 1 . . . . . . Machines Repaired . | . . . . . . . . . . . . . . . . . . . . Machines Dismantled . | . . . . . . . . . . . . . . . . . . . . Machines Sabotaged . | . . . . . . . . . . . . . . . . . . . . Overloaded Fab Kills . | . . . . . . . . . . . . . . . . . . . . Hacking | -11 -10 -10 -10 -9 -8 -7 -7 -7 -7 -6 -6 -6 -5 -5 -5 -4 -4 -4 -4 --------- Run | Yrd Mat Min Exi Min Mat Fac Was Fac DSF Fac Low Low Fac Upp Upp Fac Was Fac Upp Machines Accessed 27 | . . . 2 . 3 2 . 1 . 6 1 . 3 1 . . . 8 . Terminals 12 | . . . . . 1 2 . 1 . 3 . . . . . . . 5 . Fabricators 4 | . . . . . . . . . . . . . 2 . . . . 2 . Repair Stations 1 | . . . . . . . . . . . . . . . . . . 1 . Recycling Units . | . . . . . . . . . . . . . . . . . . . . Scanalyzers 3 | . . . . . 1 . . . . 2 . . . . . . . . . Garrison Access 3 | . . . . . 1 . . . . 1 . . 1 . . . . . . Total Hacks 82 | . . . 5 . 10 4 . 1 . 22 1 . 8 1 . . . 30 . Successful 52 | . . . 5 . 9 1 . 1 . 12 1 . 5 1 . . . 17 . Failed 30 | . . . . . 1 3 . . . 10 . . 3 . . . . 13 . Catastrophic 8 | . . . . . . 3 . . . 2 . . . . . . . 3 . Database Lockouts . | . . . . . . . . . . . . . . . . . . . . Manual 33 | . . . 1 . 3 3 . . . 7 . . . . . . . 19 . Terminals 43 | . . . . . 3 4 . 1 . 11 . . . . . . . 24 . Fabricators 11 | . . . . . . . . . . . . . 7 . . . . 4 . Repair Stations 2 | . . . . . . . . . . . . . . . . . . 2 . Recycling Units . | . . . . . . . . . . . . . . . . . . . . Scanalyzers 15 | . . . . . 6 . . . . 9 . . . . . . . . . Garrison Access 4 | . . . . . 1 . . . . 2 . . 1 . . . . . . Terminal Hacks 27 | . . . 5 . 2 1 . 1 . 5 1 . . 1 . . . 11 . Record 9 | . . . 4 . . . . . . 1 . . . . . . . 4 . Part Schematic 1 | . . . . . . . . . . . . . . . . . . 1 . Robot Analysis 1 | . . . . . . . . . . 1 . . . . . . . . . Prototype ID Bank 1 | . . . . . . 1 . . . . . . . . . . . . . Open Door 2 | . . . . . . . . . . . 1 . . 1 . . . . . Open DSF 1 | . . . . . . . . 1 . . . . . . . . . . . Branch Access Points 1 | . . . . . . . . . . 1 . . . . . . . . . Maintenance Status 1 | . . . . . . . . . . 1 . . . . . . . . . Transport Status 1 | . . . . . 1 . . . . . . . . . . . . . . Investigation Status 2 | . . . . . . . . . . . . . . . . . . 2 . Recall Investigation 4 | . . . . . . . . . . . . . . . . . . 4 . Hauler Manifests 2 | . . . . . 1 . . . . 1 . . . . . . . . . Proto ID Catalog 1 | . . . 1 . . . . . . . . . . . . . . . . Fabricator Hacks 8 | . . . . . . . . . . . . . 4 . . . . 4 . Load Schematic 4 | . . . . . . . . . . . . . 2 . . . . 2 . Build 4 | . . . . . . . . . . . . . 2 . . . . 2 . Repair Station Hacks 2 | . . . . . . . . . . . . . . . . . . 2 . Scan Component 1 | . . . . . . . . . . . . . . . . . . 1 . Repair 1 | . . . . . . . . . . . . . . . . . . 1 . Recycling Unit Hacks . | . . . . . . . . . . . . . . . . . . . . Scanalyzer 12 | . . . . . 6 . . . . 6 . . . . . . . . . Insert Component 5 | . . . . . 3 . . . . 2 . . . . . . . . . Analyze 7 | . . . . . 3 . . . . 4 . . . . . . . . . Garrison Access Hacks 3 | . . . . . 1 . . . . 1 . . 1 . . . . . . Seal Access 3 | . . . . . 1 . . . . 1 . . 1 . . . . . . Unauthorized Hacks . | . . . . . . . . . . . . . . . . . . . . Terminals . | . . . . . . . . . . . . . . . . . . . . Fabricators . | . . . . . . . . . . . . . . . . . . . . Repair Stations . | . . . . . . . . . . . . . . . . . . . . Recycling Units . | . . . . . . . . . . . . . . . . . . . . Scanalyzers . | . . . . . . . . . . . . . . . . . . . . Garrison Access . | . . . . . . . . . . . . . . . . . . . . Data Cores Recovered . | . . . . . . . . . . . . . . . . . . . . Used . | . . . . . . . . . . . . . . . . . . . . Hacking Detections 15 | . . . . . 1 2 . . . 3 . . 2 . . . . 7 . Full Trace Events 8 | . . . . . 1 1 . . . 1 . . 2 . . . . 3 . Feedback Events 1 | . . . . . . . . . . . . . . . . . . 1 . Hackware Fried 1 | . . . . . . . . . . . . . . . . . . 1 . Feedback Blocked . | . . . . . . . . . . . . . . . . . . . . Robot Schematics Acquired . | . . . . . . . . . . . . . . . . . . . . Robots Built . | . . . . . . . . . . . . . . . . . . . . Authchips . | . . . . . . . . . . . . . . . . . . . . Time . | . . . . . . . . . . . . . . . . . . . . Total Robot Build Rating . | . . . . . . . . . . . . . . . . . . . . Part Schematics Acquired 6 | . . . . . 3 . . . . 2 . . . . . . . 1 . Parts Built 4 | . . . . . . . . . . . . . 2 . . . . 2 . Authchips . | . . . . . . . . . . . . . . . . . . . . Time 190 | . . . . . . . . . . . . . 84 . . . . 106 . Total Part Build Rating 20 | . . . . . . . . . . . . . 8 . . . . 12 . Parts Repaired 1 | . . . . . . . . . . . . . . . . . . 1 . Time 62 | . . . . . . . . . . . . . . . . . . 62 . Parts Recycled . | . . . . . . . . . . . . . . . . . . . . Recycled Matter . | . . . . . . . . . . . . . . . . . . . . Retrieved Matter . | . . . . . . . . . . . . . . . . . . . . Retrieved Components . | . . . . . . . . . . . . . . . . . . . . Parts Scanalyzed 5 | . . . . . 3 . . . . 2 . . . . . . . . . Part Schematics Acquired 5 | . . . . . 3 . . . . 2 . . . . . . . . . Parts Damaged . | . . . . . . . . . . . . . . . . . . . . Bothacking | -11 -10 -10 -10 -9 -8 -7 -7 -7 -7 -6 -6 -6 -5 -5 -5 -4 -4 -4 -4 ------------ Run | Yrd Mat Min Exi Min Mat Fac Was Fac DSF Fac Low Low Fac Upp Upp Fac Was Fac Upp Used RIF Installer . | . . . . . . . . . . . . . . . . . . . . Robots Hacked . | . . . . . . . . . . . . . . . . . . . . Non-combat . | . . . . . . . . . . . . . . . . . . . . Combat . | . . . . . . . . . . . . . . . . . . . . Robot Hacks Applied . | . . . . . . . . . . . . . . . . . . . . Relay Couplers Released . | . . . . . . . . . . . . . . . . . . . . Fabnet Peak Effective % . | . . . . . . . . . . . . . . . . . . . . Robots Rewired . | . . . . . . . . . . . . . . . . . . . . Allies Hacked . | . . . . . . . . . . . . . . . . . . . . Hacks Repelled . | . . . . . . . . . . . . . . . . . . . . Allies | -11 -10 -10 -10 -9 -8 -7 -7 -7 -7 -6 -6 -6 -5 -5 -5 -4 -4 -4 -4 -------- Run | Yrd Mat Min Exi Min Mat Fac Was Fac DSF Fac Low Low Fac Upp Upp Fac Was Fac Upp Total Allies 20 | . . . . . . . 20 . . . . . . . . . . . . Largest Group 20 | . . . . . . . 20 20 19 8 . . . . . . . . . Highest-Rated Group 496 | . . . . . . . 496 496 461 248 . . . . . . . . . Highest-Rated Ally 35 | . . . . . . . 35 35 35 35 . . . . . . . . . Initial Warlord ECA Mod 79 | . . . . . . . . . . 9 9 9 8 8 8 7 7 7 7 Total Orders . | . . . . . . . . . . . . . . . . . . . . Ally Attacks 148 | . . . . . . . . . 83 65 . . . . . . . . . Total Damage 3580 | . . . . . . . . . 2442 1138 . . . . . . . . . Kills 16 | . . . . . . . . . 10 6 . . . . . . . . . Allies Corrupted . | . . . . . . . . . . . . . . . . . . . . Allies Melted . | . . . . . . . . . . . . . . . . . . . . Intel | -11 -10 -10 -10 -9 -8 -7 -7 -7 -7 -6 -6 -6 -5 -5 -5 -4 -4 -4 -4 ------- Run | Yrd Mat Min Exi Min Mat Fac Was Fac DSF Fac Low Low Fac Upp Upp Fac Was Fac Upp Active Infowar (turns) 2581 | 22 219 621 378 115 198 . . . . . . 338 690 . . . . . . Terrain 1028 | . . . . . . . . . . . . 338 690 . . . . . . Seismic 1553 | 22 219 621 378 115 198 . . . . . . . . . . . . . . Robot Analysis Total 1 | . . . . . . . . . . 1 . . . . . . . . . Derelict Logs Recovered 4 | . . . . . . . . . . . . 2 . . 1 . . . 1 Drone Launches . | . . . . . . . . . . . . . . . . . . . . Drone Recoveries . | . . . . . . . . . . . . . . . . . . . . Exploration | -11 -10 -10 -10 -9 -8 -7 -7 -7 -7 -6 -6 -6 -5 -5 -5 -4 -4 -4 -4 ------------- Run | Yrd Mat Min Exi Min Mat Fac Was Fac DSF Fac Low Low Fac Upp Upp Fac Was Fac Upp Turns Passed 8087 | 108 219 621 378 115 1597 360 109 142 193 694 263 736 884 252 60 68 48 1089 151 Spaces Moved 8300 | 51 136 348 235 72 874 804 173 63 372 1408 459 432 469 314 73 113 87 1585 232 Core 362 | 4 . . . . . . . . . . . . 95 . 69 107 87 . . Treads 1258 | 47 136 348 235 72 102 . . . . . . 135 169 14 . . . . . Legs 1032 | . . . . . 754 . . . . . . 77 201 . . . . . . Wheels 178 | . . . . . 18 . . . . . . . . 88 . 6 . 66 . Hover 735 | . . . . . . . . . . . . . 2 . . . . 733 . Flight 4735 | . . . . . . 804 173 63 372 1408 459 220 2 212 4 . . 786 232 Fastest Speed 23 | 50 160 160 160 160 105 27 27 27 23 23 24 107 45 45 45 50 50 32 32 Average Speed 75 | 151 160 160 160 160 129 39 27 27 33 34 42 167 146 67 49 52 51 47 32 Slowest Speed 270 | 160 160 160 160 160 270 111 27 27 105 106 117 250 250 205 50 90 100 205 125 Overloaded Moves . | . . . . . . . . . . . . . . . . . . . . Propulsion Burnouts . | . . . . . . . . . . . . . . . . . . . . Robots Hopped 7 | . . . . . . . . . . 7 . . . . . . . . . Potential Cave-ins . | . . . . . . . . . . . . . . . . . . . . Cave-ins Triggered 1 | . . . . . . . . . . 1 . . . . . . . . . Exploration Rate (%) 43 | 4 25 85 62 28 80 22 84 2 94 36 66 43 14 47 9 5 77 26 51 Regions Visited 19 Branch Regions 8 Pre-discovered Areas 3 | . . . 1 . . . . . . . 1 . . . 1 . . . . Known Exits Taken 3 | . . . . . . . . 1 . 1 . . 1 . . . . . . Unknown Exits Taken 11 | 1 1 1 1 1 1 . . . . . 1 1 . 1 1 . . 1 . Scrap Searched 9 | . . . . . . . . . . . 3 4 . 2 . . . . . Spaces Dug 23 | . . . . . . 2 . . . 7 1 . 9 . . . . 2 2 Terrain Destroyed 89 | . . 13 . . 7 2 . . . 7 19 . 37 . . . . 2 2 Melee 23 | . . . . . . 2 . . . 7 1 . 9 . . . . 2 2 Projectile . | . . . . . . . . . . . . . . . . . . . . AOE 66 | . . 13 . . 7 . . . . . 18 . 28 . . . . . . Terrain Rammed . | . . . . . . . . . . . . . . . . . . . . Walls Destroyed . | . . . . . . . . . . . . . . . . . . . . Machines Disabled . | . . . . . . . . . . . . . . . . . . . . Actions | -11 -10 -10 -10 -9 -8 -7 -7 -7 -7 -6 -6 -6 -5 -5 -5 -4 -4 -4 -4 --------- Run | Yrd Mat Min Exi Min Mat Fac Was Fac DSF Fac Low Low Fac Upp Upp Fac Was Fac Upp Total 9770 | 69 137 372 238 72 1259 847 233 187 440 1590 508 441 610 334 82 120 90 1854 287 Wait 914 | . . 1 . . 263 5 57 125 22 126 14 . 65 5 . . 1 194 36 Move 8269 | 50 135 347 234 71 873 804 172 62 371 1393 458 431 468 313 72 113 86 1584 232 Hop 7 | . . . . . . . . . . 7 . . . . . . . . . Pick Up 68 | 4 1 3 2 1 18 9 1 . 3 10 2 . 4 . 1 . 2 4 3 Fast Attach 82 | 8 1 . . . 8 1 . . 7 4 5 5 13 3 . 4 1 21 1 Attach 42 | . . 1 . . 11 7 . . 1 7 2 . 5 1 . 3 . 4 . Detach 22 | 1 . . . . 6 3 . . . 3 2 . 3 1 . . . 3 . Swap 19 | . . . 1 . 1 3 . . 2 7 2 . 1 . . . . 1 1 Drop 65 | 1 . . 1 . 8 13 1 . 10 10 5 1 5 . . . . 9 1 Fire 44 | 5 . 20 . . 13 . . . . . 3 . 3 . . . . . . Melee 216 | . . . . . 58 2 2 . 3 23 15 4 43 11 9 . . 33 13 Ram 1 | . . . . . . . . . . . . . . . . . . 1 . Kick . | . . . . . . . . . . . . . . . . . . . . Crush . | . . . . . . . . . . . . . . . . . . . . Escape Stasis 21 | . . . . . . . . . 21 . . . . . . . . . . Rewire . | . . . . . . . . . . . . . . . . . . . . Trap . | . . . . . . . . . . . . . . . . . . . . Miscellaneous . | . . . . . . . . . . . . . . . . . . . . Route ------- -11/Scrapyard -10/Materials (discovered 2 exits: [*Mat] / [*Min]) -10/Mines (discovered 4 exits: [*Mat x2] / *Exi / [*Sub]) -10/Exiles -9/Mines -8/Materials (discovered 2 exits: *Fac x2) -7/Factory -7/Waste -7/Factory -7/DSF -6/Factory (discovered 4 exits: *Fac x2 / *Low x2) -6/Lower Caves -6/Lower Caves -5/Factory (discovered 2 exits: *Upp x2) -5/Upper Caves -5/Upper Caves -4/Factory -4/Waste -4/Factory -4/Upper Caves (discovered 1 exit: Upp) History --------- Turn | Location | Event 11 | -11/Scrapyard | Discovered new exit (range 13) 109 | -11/Scrapyard | Entered Materials 210 | -10/Materials | Discovered new exit (range 10) 313 | -10/Materials | Discovered new exit (range 6) 318 | -10/Materials | Build established: Mutant 328 | -10/Materials | Entered Mines 365 | -10/Mines | Discovered new exit (range 6) 399 | -10/Mines | Met a Derelict bent on vengeance 563 | -10/Mines | Discovered new exit (range 7) 790 | -10/Mines | Discovered new exit (range 6) 843 | -10/Mines | Received a Rocket Launcher from a helpful Derelict 939 | -10/Mines | Deemed a non-threat by the Exiles lab entrance 941 | -10/Mines | Discovered new exit (range 5) 949 | -10/Mines | Entered Exiles 986 | -10/Exiles | Met 8R-AWN 1015 | -10/Exiles | Met EX-HEX 1061 | -10/Exiles | Met EX-BIN 1081 | -10/Exiles | Aligned with FarCom system 1082 | -10/Exiles | Given EX-Vault access code 1122 | -10/Exiles | Opened EX-Vault 1133 | -10/Exiles | Found Longsword +1 1163 | -10/Exiles | Warned to stay clear of 0b10 Research branches 1210 | -10/Exiles | Met EX-DEC 1230 | -10/Exiles | Learned location of Zion (-7) 1310 | -10/Exiles | Discovered new exit (range 14) 1327 | -10/Exiles | Left Exiles lab with Longsword +1 1327 | -10/Exiles | Entered Mines 1378 | -9/Mines | YI-UF0 nonchalantly dropped a Grenade Launcher on the ground 1418 | -9/Mines | Discovered new exit (range 16) 1442 | -9/Mines | Entered Materials 1442 | -8/Materials | Evolved 4 slots: Power x1, Propulsion x2, Utility x1 1704 | -8/Materials | Lost 5 parts (1p2n1u1w) 2156 | -8/Materials | Discovered new exit (range 15) 2348 | -8/Materials | Build established: Scavenger-Mutant 3014 | -8/Materials | Discovered new exit (range 16) 3039 | -8/Materials | Entered Factory 3039 | -7/Factory | Evolved 2 slots: Propulsion x1, Utility x1 3343 | -7/Factory | Build established: Hacker-Mutant 3399 | -7/Factory | Manually triggered Chute Trap 3399 | -7/Factory | Sucked down chute 3399 | -7/Factory | Entered Waste 3400 | -7/Waste | Joined by Warlord forces that had cleared the area 3449 | -7/Waste | Discovered new exit (range 12) 3508 | -7/Waste | Entered Factory 3508 | -7/Factory | Accompanied by 20 allies 3525 | -7/Factory | Identified exit to DSF 3650 | -7/Factory | Entered DSF 3650 | -7/DSF | Accompanied by 20 allies 3664 | -7/DSF | Build established: Hacker-Sprinter 3667 | -7/DSF | Additional patrols routed to DSF 3677 | -7/DSF | Discovered new exit (range 11) 3713 | -7/DSF | Lost 10 allies 3801 | -7/DSF | Sterilization system engaged 3821 | -7/DSF | Ambient heat levels rising (+10) 3824 | -7/DSF | Lost 3 parts (2n1u) 3836 | -7/DSF | Ambient heat levels rising (+10) 3843 | -7/DSF | Entered Factory 3843 | -6/Factory | Accompanied by 8 allies 3843 | -6/Factory | Evolved 2 slots: Utility x2 4086 | -6/Factory | Crushed by falling debris 4117 | -6/Factory | Lost 4 parts (1p1n2u) 4117 | -6/Factory | Lost 4 allies 4221 | -6/Factory | Discovered new exit (range 7) 4295 | -6/Factory | Identified exit to Lower Caves 4480 | -6/Factory | Discovered new exit (range 13) 4537 | -6/Factory | Entered Lower Caves 4544 | -6/Lower Caves | Met a Warlord Commander 4545 | -6/Lower Caves | Learned location of Warlord (-5) 4546 | -6/Lower Caves | Warlord Commander delivered Encrypted Comm Array 4550 | -6/Lower Caves | Found Encrypted Comm Array 4724 | -6/Lower Caves | Attracted the attention of an 0b10 checkpoint 4764 | -6/Lower Caves | Lost 3 parts (2n1u) 4776 | -6/Lower Caves | Encountered a Warlord checkpoint 4784 | -6/Lower Caves | Discovered new exit (range 15) 4800 | -6/Lower Caves | Entered another Lower Caves area 4835 | -6/Lower Caves | Learned 8 Factory zone layouts 5026 | -6/Lower Caves | Build established: Hacker-Mutant 5273 | -6/Lower Caves | Discovered new exit (range 14) 5494 | -6/Lower Caves | Build established: Hacker-Gladiator 5536 | -6/Lower Caves | Entered Factory 5536 | -5/Factory | Evolved 2 slots: Propulsion x1, Utility x1 5537 | -5/Factory | Identified exit to Upper Caves 6115 | -5/Factory | Fabricated Xenon Bombardment Thruster (x2) 6268 | -5/Factory | Lost 4 parts (1p2n1u) 6394 | -5/Factory | Lost 9 parts (1p5n1u2w) 6420 | -5/Factory | Entered Upper Caves 6557 | -5/Upper Caves | System corruption reached 10% 6561 | -5/Upper Caves | Core integrity fell below 50% 6601 | -5/Upper Caves | Attracted the attention of an 0b10 outpost 6668 | -5/Upper Caves | Discovered new exit (range 8) 6672 | -5/Upper Caves | Entered another Upper Caves area 6686 | -5/Upper Caves | Core integrity fell below 20% 6720 | -5/Upper Caves | Discovered new exit (range 15) 6732 | -5/Upper Caves | Entered Factory 6732 | -4/Factory | Evolved 2 slots: Utility x2 6800 | -4/Factory | Manually triggered Chute Trap 6800 | -4/Factory | Sucked down chute 6800 | -4/Factory | Entered Waste 6806 | -4/Waste | Spotted C-40 Crusher 6809 | -4/Waste | Spotted C-40 Crusher 6813 | -4/Waste | Spotted C-40 Crusher 6815 | -4/Waste | EMP discharged 6825 | -4/Waste | Spotted C-40 Crusher 6830 | -4/Waste | Spotted C-40 Crusher 6830 | -4/Waste | Spotted C-40 Crusher 6836 | -4/Waste | Discovered new exit (range 16) 6836 | -4/Waste | Crushed by Compactor (1 part destroyed, 1 dropped) 6848 | -4/Waste | Entered Factory 7042 | -4/Factory | Build established: Wizard-Mutant 7072 | -4/Factory | Repaired Broken Centrium Greatsword? 7193 | -4/Factory | Fabricated Nuclear Pulse Array? 7395 | -4/Factory | Build established: Wizard-Gladiator 7620 | -4/Factory | Hacking Suite fried by hacking feedback 7641 | -4/Factory | Fabricated Nuclear Pulse Array? 7745 | -4/Factory | System corruption reached 10% 7827 | -4/Factory | Lost 3 parts (1p1n1u) 7900 | -4/Factory | Build established: Wizard-Mutant 7911 | -4/Factory | Lost 3 parts (1p1n1w) 7933 | -4/Factory | Discovered new exit (range 14) 7937 | -4/Factory | Entered Upper Caves 7952 | -4/Upper Caves | Encountered a Warlord checkpoint 7956 | -4/Upper Caves | Identified exit to Upper Caves 8025 | -4/Upper Caves | Attracted the attention of an 0b10 checkpoint 8088 | -4/Upper Caves | Self-destructed Last Messages --------------- 08038_ System corrupted: Slammed into ceiling. 08041_ System corrupted: Matter fused (-8). 08068_ Penetrated by Slug. 08068_ Field Propulsion Drive destroyed. 08072_ System corrupted: Mic. Fission Core rejected. 08074_ Acquired Mic. Fission Core. 08078_ Field Propulsion Drive destroyed. 08081_ G-73 Enforcer: "INCOMING HOSTILES. DEFEND SHIPMENT RENDEZVOUS PERIMETER." 08081_ Penetrated by Slug. 08081_ Adv. Weight Redist. System destroyed. 08084_ Mic. Fission Core destroyed. 08084_ P-70 Sage resets Y-64 Sentinel, system corruption cleaned. 08085_ Nuclear Pulse Array destroyed. 08086_ System Shield destroyed. 08086_ Field Propulsion Drive destroyed. 08087_ System corrupted: Substantial component data lost. Map ----- +----------------------------------------------------+ | ?????????????????????????????????????????????????? | | ?????????????????????????????????????????????????? | | ?????????????????????????????????????????????????? | | ?????????????????????????????????????????????????? | | ?????????????????????????????????????????????????? | | ?????????????????????????????????????????????????? | | ?????????????????????????????????????????###?????? | | ????????????????????????????????????????? ##????? | | ????????????????????????????????????????? ###??? | | ????????????????####????????????????????? #??? | | ????????#####??## #######??????????##### #??? | | ????????# #?## #??###????## ##?? | | ?????????# ### ? #?## ##??## ### | | ????????## #?? #?# #### #?? | | ????##### #??# #?# #??? | | ???## #?## #?# #????? | | ??## ### #?# #?????# | | ??# #?# ##### ##???## | | ??# g #??# ##??## #??## | | ???# gg g #??# #???# ##?# | | ## g #### #???## #??# | | ???## #### ## #????## #???# | | ## ??????####??# ##?????## ####### | | ?????????????????# #??????## ## ### | | ?????????????????## #?????## ## ## | | ??????????????????# @ #?????# ### | | ??????????????????# #?????## ### | | ??????????????????# Y ##??????# ## | | ??????????????????# pp ##???????# "" ## | | ?????????????????# ##????????# ### ####? | | ?????????????????########## ## ??????# #?###???? | | ?????????????????????????? # ##### | | ?????????????????????????? # | | ?????????????????????????? ## ### # | | ?????????????????????????? ??# ##???# # | | ??????????????????????????#???##????### # | | ??????????????????????????????????????## # | | ???????????????????????????????????????# # | | ???????????????????????????????????????# # | | ???????????????????????????????????????# ######## | | ???????????????????????????????????????# #??????? | | ??????????????????????????????????????? #??????? | | ??????????????????????????????????????? ??????? | | ??????????????????????????????????????? ??????? | | ??????????????????????????????????????? ??????? | | ??????????????????????????????????????? ###??????? | | ???????????????????????????????????????#?????????? | | ?????????????????????????????????????????????????? | | ?????????????????????????????????????????????????? | | ?????????????????????????????????????????????????? | +----------------------------------------------------+ Best States ------------- Heat Dissipation 51 Coolant Potential 100 Energy Generation 31 Energy Capacity 325 Matter Stores 300 Matter Capacity 300 Sight Range 16 Terrain Scan Range 20 Terrain Scan Density 10 Additional Mass Support 9 Armor Coverage 225 Propulsion Shielding 66 Evasion (%) 65 Melee Accuracy 8 Recoil Reduction 2 Offensive Hacking 56 Defensive Hacking 32 Item Schematics ----------------- Hacking Suite | -8/Materials | Scanalyzed Adv. Weight Redist. System | -8/Materials | Scanalyzed System Shield | -8/Materials | Scanalyzed Cesium-ion Thruster | -6/Factory | Scanalyzed Xenon Bombardment Thruster | -6/Factory | Scanalyzed Nuclear Pulse Array | -4/Factory | Hacked Robot Schematics ------------------ None Fabricated ------------ Xenon Bombardment Thruster | x2 | -5/Factory Nuclear Pulse Array | x1 | -4/Factory Nuclear Pulse Array | x1 | -4/Factory Repaired ---------- Centrium Greatsword | 10% | -4/Factory | Broken Alien Tech Used ----------------- None Achievements -------------- Watch This! Challenges ------------ None Game ------ Seed GyrokineticIonAutocannon Manual? 0 Play Time 01:26:09 Cumulative 119.2 hours Start 2025.06.29 @ 19:56:03 End 2025.07.17 @ 23:21:13 Sessions 7 Manual Loads 0 Difficulty Rogue Special Mode None Game No. 225 Rogue 225 Adventurer 0 Explorer 0 Win Type - Total 0 Types 0/0/0/0/0/0/0/0/0/0 Lore% 31 Gallery% 48 Achievement% 37 Wizard Run 0 Options --------- Layout 1 ASCII 0 Keyboard 1 Movement Arrows Keybinds 0 Fullscreen 2 Font 24/Smallcaps Map View 50x35 Zoom Use 0% Tactical HUD 1 Map Filters NONE Filters NONE Steam 1 RUN: b400f5d3-7b29-4511-95cf-4b1bf39647b2